[Event "Titled Tuesday Blitz June 21 Early 2022"]
[White "Artemenko, Oleg"]
[Black "Buscar, Michael"]
[WhiteFideId "14201798"]
[BlackFideId "2603616"]
[WhiteElo "2287"]
[BlackElo "2010"]
[Result "1-0"]
[Round "03"]
[TimeControl "180+1"]
[Date "2022.06.22"]
[WhiteClock "0:00:21"]
[BlackClock "0:00:05"]

1. e4 {[%clk 0:03:00]}  c5 {[%clk 0:02:58]} 2. Nf3 {[%clk 0:03:00]}  Nc6 {[%clk 0:02:57]} 3. Bb5 {[%clk 0:03:00]}  Nf6 {[%clk 0:02:57]} 4. e5 {[%clk 0:03:00]}  Nd5 {[%clk 0:02:56]} 5. O-O {[%clk 0:03:00]}  g6 {[%clk 0:02:56]} 6. c3 {[%clk 0:02:58]}  Bg7 {[%clk 0:02:55]} 7. Re1 {[%clk 0:02:57]}  O-O {[%clk 0:02:54]} 8. d4 {[%clk 0:02:58]}  cxd4 {[%clk 0:02:53]} 9. cxd4 {[%clk 0:02:57]}  Nc7 {[%clk 0:02:53]} 10. Ba4 {[%clk 0:02:57]}  d5 {[%clk 0:02:50]} 11. h3 {[%clk 0:02:55]}  b5 {[%clk 0:02:46]} 12. Bc2 {[%clk 0:02:53]}  a5 {[%clk 0:02:45]} 13. Nc3 {[%clk 0:02:52]}  Ba6 {[%clk 0:02:43]} 14. Ne2 {[%clk 0:02:46]}  Ne6 {[%clk 0:02:31]} 15. Nf4 {[%clk 0:02:45]}  Nxf4 {[%clk 0:02:18]} 16. Bxf4 {[%clk 0:02:46]}  Rc8 {[%clk 0:02:19]} 17. Qd2 {[%clk 0:02:38]}  Qb6 {[%clk 0:02:13]} 18. Rad1 {[%clk 0:02:36]}  b4 {[%clk 0:01:49]} 19. Bb1 {[%clk 0:02:28]}  a4 {[%clk 0:01:42]} 20. Bh6 {[%clk 0:02:25]}  b3 {[%clk 0:01:35]} 21. Bxg7 {[%clk 0:02:23]}  Kxg7 {[%clk 0:01:35]} 22. a3 {[%clk 0:02:23]}  Na5 {[%clk 0:01:33]} 23. Qg5 {[%clk 0:02:19]}  Rc7 {[%clk 0:01:11]} 24. Nh4 {[%clk 0:02:10]}  Bc8 {[%clk 0:01:07]} 25. f4 {[%clk 0:01:50]}  Rc2 {[%clk 0:00:46]} 26. f5 {[%clk 0:01:09]}  f6 {[%clk 0:00:43]} 27. exf6+ {[%clk 0:00:57]}  exf6 {[%clk 0:00:43]} 28. Re7+ {[%clk 0:00:56]}  Rf7 {[%clk 0:00:43]} 29. Rxf7+ {[%clk 0:00:55]}  Kxf7 {[%clk 0:00:44]} 30. fxg6+ {[%clk 0:00:55]}  hxg6 {[%clk 0:00:39]} 31. Qxg6+ {[%clk 0:00:55]}  Kf8 {[%clk 0:00:32]} 32. Bxc2 {[%clk 0:00:51]}  bxc2 {[%clk 0:00:32]} 33. Qxc2 {[%clk 0:00:52]}  Nc4 {[%clk 0:00:32]} 34. Qh7 {[%clk 0:00:48]}  Qe6 {[%clk 0:00:19]} 35. Rf1 {[%clk 0:00:31]}  Ne3 {[%clk 0:00:10]} 36. Ng6+ {[%clk 0:00:26]}  Ke8 {[%clk 0:00:10]} 37. Re1 {[%clk 0:00:18]}  Qe4 {[%clk 0:00:08]} 38. Qe7+ {[%clk 0:00:18]}  Qxe7 {[%clk 0:00:08]} 39. Nxe7 {[%clk 0:00:19]}  Kxe7 {[%clk 0:00:09]} 40. Rxe3+ {[%clk 0:00:19]}  Kd6 {[%clk 0:00:07]} 41. g4 {[%clk 0:00:19]}  Bd7 {[%clk 0:00:06]} 42. Kf2 {[%clk 0:00:20]}  Bc6 {[%clk 0:00:05]} 43. Kg3 {[%clk 0:00:20]}  Bd7 {[%clk 0:00:05]} 44. Kf4 {[%clk 0:00:21]} 1-0


[Site "https://www.chess.com"]

[Event "Titled Tuesday Blitz June 21 Early 2022"]
[White "Aslanov, Umid"]
[Black "Costachi, Mihnea"]
[WhiteFideId "13412620"]
[BlackFideId "1217518"]
[WhiteElo "1796"]
[BlackElo "2476"]
[Result "0-1"]
[Round "03"]
[TimeControl "180+1"]
[Date "2022.06.21"]
[WhiteClock "0:00:02"]
[BlackClock "0:01:14"]

1. e4 {[%clk 0:02:59]}  e5 {[%clk 0:02:59]} 2. Nf3 {[%clk 0:03:00]}  Nc6 {[%clk 0:02:59]} 3. Bc4 {[%clk 0:03:00]}  Bc5 {[%clk 0:02:59]} 4. d3 {[%clk 0:03:01]}  Nf6 {[%clk 0:02:59]} 5. O-O {[%clk 0:03:01]}  h6 {[%clk 0:02:59]} 6. c3 {[%clk 0:03:00]}  d6 {[%clk 0:02:59]} 7. Nbd2 {[%clk 0:02:57]}  a6 {[%clk 0:02:59]} 8. Bb3 {[%clk 0:02:56]}  Ba7 {[%clk 0:02:59]} 9. Bc2 {[%clk 0:02:55]}  O-O {[%clk 0:02:57]} 10. h3 {[%clk 0:02:53]}  Ne7 {[%clk 0:02:56]} 11. Re1 {[%clk 0:02:52]}  Ng6 {[%clk 0:02:56]} 12. Nf1 {[%clk 0:02:51]}  Nh5 {[%clk 0:02:53]} 13. d4 {[%clk 0:02:29]}  Qf6 {[%clk 0:02:50]} 14. Nxe5 {[%clk 0:02:02]}  dxe5 {[%clk 0:02:34]} 15. Qxh5 {[%clk 0:02:01]}  exd4 {[%clk 0:02:34]} 16. cxd4 {[%clk 0:02:02]}  Bxd4 {[%clk 0:02:32]} 17. Qe2 {[%clk 0:01:46]}  Nf4 {[%clk 0:02:27]} 18. Bxf4 {[%clk 0:01:46]}  Qxf4 {[%clk 0:02:27]} 19. Bd3 {[%clk 0:01:35]}  c5 {[%clk 0:02:22]} 20. g3 {[%clk 0:01:31]}  Qe5 {[%clk 0:02:14]} 21. Kg2 {[%clk 0:01:27]}  Qe6 {[%clk 0:02:10]} 22. g4 {[%clk 0:01:23]}  b5 {[%clk 0:02:11]} 23. f4 {[%clk 0:01:16]}  c4 {[%clk 0:02:07]} 24. Bb1 {[%clk 0:01:14]}  Bb7 {[%clk 0:02:07]} 25. Ng3 {[%clk 0:01:13]}  Rad8 {[%clk 0:01:59]} 26. Kh2 {[%clk 0:01:06]}  Rfe8 {[%clk 0:01:54]} 27. e5 {[%clk 0:01:03]}  c3 {[%clk 0:01:49]} 28. Bf5 {[%clk 0:01:00]}  Qb6 {[%clk 0:01:45]} 29. g5 {[%clk 0:00:43]}  cxb2 {[%clk 0:01:43]} 30. Rab1 {[%clk 0:00:42]}  Bc3 {[%clk 0:01:44]} 31. Red1 {[%clk 0:00:36]}  hxg5 {[%clk 0:01:44]} 32. Nh5 {[%clk 0:00:31]}  gxf4 {[%clk 0:01:28]} 33. Bd3 {[%clk 0:00:13]}  Rxe5 {[%clk 0:01:22]} 34. Bh7+ {[%clk 0:00:10]}  Kxh7 {[%clk 0:01:22]} 35. Qc2+ {[%clk 0:00:10]}  Kh6 {[%clk 0:01:21]} 36. Rxd8 {[%clk 0:00:05]}  Qxd8 {[%clk 0:01:18]} 37. Qxc3 {[%clk 0:00:03]}  Re2+ {[%clk 0:01:18]} 38. Kg1 {[%clk 0:00:03]}  Qb6+ {[%clk 0:01:14]} 39. Kf1 {[%clk 0:00:02]}  Qf2# {[%clk 0:01:14]} 0-1


[Site "https://www.chess.com"]

[Event "Titled Tuesday Blitz June 21 Early 2022"]
[White "Bachmann, Axel"]
[Black "Oparin, Grigoriy"]
[WhiteFideId "3700488"]
[BlackFideId "24125890"]
[WhiteElo "2587"]
[BlackElo "2639"]
[Result "0-1"]
[Round "03"]
[TimeControl "180+1"]
[Date "2022.06.21"]
[WhiteClock "0:00:04"]
[BlackClock "0:00:15"]

1. e4 {[%clk 0:02:59]}  c5 {[%clk 0:03:00]} 2. Nf3 {[%clk 0:02:57]}  d6 {[%clk 0:03:00]} 3. c3 {[%clk 0:02:56]}  Nf6 {[%clk 0:03:00]} 4. h3 {[%clk 0:02:56]}  Bd7 {[%clk 0:02:55]} 5. Bd3 {[%clk 0:02:54]}  Nc6 {[%clk 0:02:53]} 6. O-O {[%clk 0:02:54]}  e6 {[%clk 0:02:54]} 7. Bc2 {[%clk 0:02:53]}  Be7 {[%clk 0:02:54]} 8. d4 {[%clk 0:02:52]}  cxd4 {[%clk 0:02:51]} 9. cxd4 {[%clk 0:02:53]}  Nb4 {[%clk 0:02:51]} 10. Nc3 {[%clk 0:02:24]}  Nxc2 {[%clk 0:02:51]} 11. Qxc2 {[%clk 0:02:25]}  O-O {[%clk 0:02:52]} 12. Bg5 {[%clk 0:02:24]}  h6 {[%clk 0:02:51]} 13. Bh4 {[%clk 0:02:23]}  Rc8 {[%clk 0:02:51]} 14. Qb3 {[%clk 0:02:13]}  Bc6 {[%clk 0:02:44]} 15. Rfe1 {[%clk 0:02:10]}  Re8 {[%clk 0:02:41]} 16. Rad1 {[%clk 0:02:04]}  d5 {[%clk 0:02:38]} 17. e5 {[%clk 0:01:26]}  Ne4 {[%clk 0:02:38]} 18. Bxe7 {[%clk 0:01:27]}  Rxe7 {[%clk 0:02:39]} 19. Re3 {[%clk 0:01:23]}  Qa5 {[%clk 0:02:35]} 20. Rde1 {[%clk 0:01:08]}  Rec7 {[%clk 0:02:34]} 21. Qd1 {[%clk 0:01:04]}  Nxc3 {[%clk 0:02:33]} 22. Rxc3 {[%clk 0:01:05]}  Qxa2 {[%clk 0:02:33]} 23. Qd2 {[%clk 0:01:00]}  Qa5 {[%clk 0:02:30]} 24. Rec1 {[%clk 0:00:56]}  Qb6 {[%clk 0:02:23]} 25. Qc2 {[%clk 0:00:55]}  a5 {[%clk 0:02:21]} 26. Rc5 {[%clk 0:00:49]}  a4 {[%clk 0:02:19]} 27. Ne1 {[%clk 0:00:45]}  Ra8 {[%clk 0:02:19]} 28. Qc3 {[%clk 0:00:42]}  Qa7 {[%clk 0:02:07]} 29. Nd3 {[%clk 0:00:42]}  a3 {[%clk 0:02:07]} 30. b4 {[%clk 0:00:35]}  Re7 {[%clk 0:02:01]} 31. Ra5 {[%clk 0:00:34]}  Qb8 {[%clk 0:01:57]} 32. b5 {[%clk 0:00:34]}  Be8 {[%clk 0:01:43]} 33. Qxa3 {[%clk 0:00:31]}  Rxa5 {[%clk 0:01:42]} 34. Qxe7 {[%clk 0:00:28]}  Bxb5 {[%clk 0:01:20]} 35. Nf4 {[%clk 0:00:27]}  Bc4 {[%clk 0:01:13]} 36. Rc3 {[%clk 0:00:26]}  b5 {[%clk 0:00:38]} 37. Rg3 {[%clk 0:00:26]}  Qf8 {[%clk 0:00:38]} 38. Qc7 {[%clk 0:00:26]}  Ra3 {[%clk 0:00:34]} 39. f3 {[%clk 0:00:21]}  Bd3 {[%clk 0:00:29]} 40. Qb7 {[%clk 0:00:11]}  b4 {[%clk 0:00:28]} 41. Nh5 {[%clk 0:00:09]}  Bg6 {[%clk 0:00:28]} 42. Nf4 {[%clk 0:00:10]}  Kh7 {[%clk 0:00:25]} 43. Rxg6 {[%clk 0:00:05]}  fxg6 {[%clk 0:00:26]} 44. Nxe6 {[%clk 0:00:06]}  Qg8 {[%clk 0:00:21]} 45. Qe7 {[%clk 0:00:06]}  Ra8 {[%clk 0:00:17]} 46. Nc5 {[%clk 0:00:04]}  Rb8 {[%clk 0:00:15]} 0-1


[Site "https://www.chess.com"]

[Event "Titled Tuesday Blitz June 21 Early 2022"]
[White "Bethke, Richard"]
[Black "Tisaj, Domen"]
[WhiteFideId "12959243"]
[BlackFideId "14628708"]
[WhiteElo "2512"]
[BlackElo "2326"]
[Result "0-1"]
[Round "03"]
[TimeControl "180+1"]
[Date "2022.06.22"]
[WhiteClock "0:01:11"]
[BlackClock "0:01:25"]

1. e4 {[%clk 0:03:00]}  c5 {[%clk 0:02:59]} 2. Nf3 {[%clk 0:02:56]}  d6 {[%clk 0:02:59]} 3. d4 {[%clk 0:02:56]}  cxd4 {[%clk 0:02:59]} 4. Nxd4 {[%clk 0:02:57]}  Nf6 {[%clk 0:02:59]} 5. Nc3 {[%clk 0:02:57]}  Nc6 {[%clk 0:02:59]} 6. Bg5 {[%clk 0:02:57]}  e6 {[%clk 0:02:59]} 7. Qd2 {[%clk 0:02:55]}  a6 {[%clk 0:02:59]} 8. O-O-O {[%clk 0:02:54]}  Bd7 {[%clk 0:03:00]} 9. f4 {[%clk 0:02:54]}  h6 {[%clk 0:03:00]} 10. Bh4 {[%clk 0:02:49]}  b5 {[%clk 0:03:00]} 11. Bxf6 {[%clk 0:02:40]}  gxf6 {[%clk 0:03:01]} 12. Kb1 {[%clk 0:02:36]}  Qb6 {[%clk 0:03:01]} 13. f5 {[%clk 0:02:28]}  h5 {[%clk 0:02:59]} 14. fxe6 {[%clk 0:02:21]}  fxe6 {[%clk 0:02:59]} 15. e5 {[%clk 0:02:11]}  Qxd4 {[%clk 0:02:49]} 16. Qxd4 {[%clk 0:02:11]}  Nxd4 {[%clk 0:02:50]} 17. Rxd4 {[%clk 0:02:12]}  dxe5 {[%clk 0:02:46]} 18. Rd1 {[%clk 0:02:11]}  Bc6 {[%clk 0:02:43]} 19. Bd3 {[%clk 0:02:09]}  f5 {[%clk 0:02:43]} 20. Rhe1 {[%clk 0:02:06]}  e4 {[%clk 0:02:43]} 21. Bf1 {[%clk 0:02:06]}  Bb4 {[%clk 0:02:43]} 22. Re3 {[%clk 0:02:04]}  Ke7 {[%clk 0:02:39]} 23. a3 {[%clk 0:02:03]}  Bc5 {[%clk 0:02:39]} 24. Rh3 {[%clk 0:02:02]}  h4 {[%clk 0:02:36]} 25. b4 {[%clk 0:01:56]}  Bd6 {[%clk 0:02:31]} 26. Ne2 {[%clk 0:01:53]}  Be5 {[%clk 0:02:24]} 27. Nd4 {[%clk 0:01:51]}  Bb7 {[%clk 0:02:20]} 28. Nb3 {[%clk 0:01:43]}  Rad8 {[%clk 0:02:16]} 29. Rxd8 {[%clk 0:01:41]}  Rxd8 {[%clk 0:02:17]} 30. Be2 {[%clk 0:01:42]}  Bf6 {[%clk 0:02:11]} 31. Nc5 {[%clk 0:01:40]}  Bc8 {[%clk 0:02:10]} 32. g3 {[%clk 0:01:38]}  Rd2 {[%clk 0:02:06]} 33. Bh5 {[%clk 0:01:34]}  e5 {[%clk 0:01:56]} 34. gxh4 {[%clk 0:01:27]}  f4 {[%clk 0:01:56]} 35. Nxe4 {[%clk 0:01:24]}  Rd4 {[%clk 0:01:46]} 36. Rc3 {[%clk 0:01:20]}  Rxe4 {[%clk 0:01:32]} 37. Rxc8 {[%clk 0:01:19]}  Re1+ {[%clk 0:01:33]} 38. Ka2 {[%clk 0:01:18]}  e4 {[%clk 0:01:34]} 39. Rc6 {[%clk 0:01:11]}  Ra1+ {[%clk 0:01:25]} 0-1


[Site "https://www.chess.com"]

[Event "Titled Tuesday Blitz June 21 Early 2022"]
[White "Bilych, Olexiy"]
[Black "Pham, Le Thao Nguyen"]
[WhiteFideId "14156504"]
[BlackFideId "12401226"]
[WhiteElo "2189"]
[BlackElo "2282"]
[Result "0-1"]
[Round "03"]
[TimeControl "180+1"]
[Date "2022.06.22"]
[WhiteClock "0:00:10"]
[BlackClock "0:00:17"]

1. e4 {[%clk 0:03:00]}  c5 {[%clk 0:02:58]} 2. Nf3 {[%clk 0:03:00]}  e6 {[%clk 0:02:55]} 3. d4 {[%clk 0:03:00]}  cxd4 {[%clk 0:02:49]} 4. Nxd4 {[%clk 0:03:00]}  a6 {[%clk 0:02:49]} 5. Nc3 {[%clk 0:02:59]}  Qc7 {[%clk 0:02:42]} 6. Be2 {[%clk 0:02:57]}  b5 {[%clk 0:02:40]} 7. O-O {[%clk 0:02:55]}  Bb7 {[%clk 0:02:32]} 8. Bf3 {[%clk 0:02:55]}  Nc6 {[%clk 0:02:16]} 9. Nxc6 {[%clk 0:02:51]}  dxc6 {[%clk 0:02:15]} 10. e5 {[%clk 0:01:58]}  Qxe5 {[%clk 0:02:10]} 11. a4 {[%clk 0:01:58]}  b4 {[%clk 0:02:04]} 12. Ne4 {[%clk 0:01:55]}  Nf6 {[%clk 0:02:01]} 13. Re1 {[%clk 0:01:53]}  Rd8 {[%clk 0:01:44]} 14. Nxf6+ {[%clk 0:01:14]}  Qxf6 {[%clk 0:01:37]} 15. Qe2 {[%clk 0:01:13]}  Bc5 {[%clk 0:01:27]} 16. Be3 {[%clk 0:01:00]}  Bxe3 {[%clk 0:01:08]} 17. Qxe3 {[%clk 0:01:00]}  Qd4 {[%clk 0:01:08]} 18. Qxd4 {[%clk 0:00:33]}  Rxd4 {[%clk 0:01:09]} 19. c3 {[%clk 0:00:34]}  Rf4 {[%clk 0:00:51]} 20. Rad1 {[%clk 0:00:26]}  Ke7 {[%clk 0:00:48]} 21. Re3 {[%clk 0:00:16]}  Rd8 {[%clk 0:00:45]} 22. Rxd8 {[%clk 0:00:16]}  Kxd8 {[%clk 0:00:46]} 23. g3 {[%clk 0:00:17]}  Rc4 {[%clk 0:00:37]} 24. Be2 {[%clk 0:00:17]}  Rc5 {[%clk 0:00:32]} 25. cxb4 {[%clk 0:00:17]}  Rc2 {[%clk 0:00:32]} 26. b3 {[%clk 0:00:16]}  Kc7 {[%clk 0:00:30]} 27. Bd3 {[%clk 0:00:13]}  Rc1+ {[%clk 0:00:29]} 28. Kg2 {[%clk 0:00:12]}  h6 {[%clk 0:00:29]} 29. Be4 {[%clk 0:00:12]}  Bc8 {[%clk 0:00:22]} 30. Re2 {[%clk 0:00:10]}  f5 {[%clk 0:00:19]} 31. Bf3 {[%clk 0:00:11]}  Rc3 {[%clk 0:00:19]} 32. Re3 {[%clk 0:00:05]}  Rxe3 {[%clk 0:00:17]} 33. fxe3 {[%clk 0:00:06]}  e5 {[%clk 0:00:18]} 34. Kf2 {[%clk 0:00:06]}  Be6 {[%clk 0:00:18]} 35. Bd1 {[%clk 0:00:07]}  Kb6 {[%clk 0:00:17]} 36. Ke2 {[%clk 0:00:07]}  c5 {[%clk 0:00:17]} 37. bxc5+ {[%clk 0:00:06]}  Kxc5 {[%clk 0:00:18]} 38. Kd2 {[%clk 0:00:06]}  Kb4 {[%clk 0:00:18]} 39. Be2 {[%clk 0:00:06]}  a5 {[%clk 0:00:18]} 40. Bb5 {[%clk 0:00:06]}  Bxb3 {[%clk 0:00:18]} 41. Bd7 {[%clk 0:00:07]}  Bxa4 {[%clk 0:00:17]} 42. Bxf5 {[%clk 0:00:07]}  Bb3 {[%clk 0:00:18]} 43. Kc1 {[%clk 0:00:07]}  Kc3 {[%clk 0:00:18]} 44. h4 {[%clk 0:00:06]}  a4 {[%clk 0:00:17]} 45. Kb1 {[%clk 0:00:05]}  a3 {[%clk 0:00:17]} 46. Ka1 {[%clk 0:00:06]}  Kd2 {[%clk 0:00:17]} 47. e4 {[%clk 0:00:04]}  Ke3 {[%clk 0:00:18]} 48. g4 {[%clk 0:00:04]}  Kf4 {[%clk 0:00:18]} 49. h5 {[%clk 0:00:04]}  Bc2 {[%clk 0:00:18]} 50. Ka2 {[%clk 0:00:05]}  Bxe4 {[%clk 0:00:19]} 51. Bc8 {[%clk 0:00:05]}  Bf3 {[%clk 0:00:19]} 52. Kxa3 {[%clk 0:00:06]}  Bxg4 {[%clk 0:00:19]} 53. Bb7 {[%clk 0:00:07]}  Bxh5 {[%clk 0:00:19]} 54. Kb4 {[%clk 0:00:08]}  Bf3 {[%clk 0:00:18]} 55. Bc8 {[%clk 0:00:08]}  g5 {[%clk 0:00:18]} 56. Kc3 {[%clk 0:00:09]}  Ke3 {[%clk 0:00:17]} 57. Bh3 {[%clk 0:00:07]}  g4 {[%clk 0:00:17]} 58. Bf1 {[%clk 0:00:08]}  g3 {[%clk 0:00:17]} 59. Ba6 {[%clk 0:00:09]}  g2 {[%clk 0:00:17]} 60. Bb7 {[%clk 0:00:10]} 0-1


[Site "https://www.chess.com"]

[Event "Titled Tuesday Blitz June 21 Early 2022"]
[White "Bortnyk, Olexandr"]
[Black "Abdrlauf, Elham"]
[WhiteFideId "14120828"]
[BlackFideId "1533533"]
[WhiteElo "2723"]
[BlackElo "2403"]
[Result "1-0"]
[Round "03"]
[TimeControl "180+1"]
[Date "2022.06.21"]
[WhiteClock "0:00:59"]
[BlackClock "0:00:06"]

1. d4 {[%clk 0:03:00]}  Nf6 {[%clk 0:02:54]} 2. Nc3 {[%clk 0:03:00]}  d5 {[%clk 0:02:55]} 3. Bf4 {[%clk 0:03:00]}  c5 {[%clk 0:02:54]} 4. e4 {[%clk 0:03:00]}  dxe4 {[%clk 0:02:51]} 5. dxc5 {[%clk 0:03:00]}  Qxd1+ {[%clk 0:02:33]} 6. Rxd1 {[%clk 0:03:01]}  Bd7 {[%clk 0:02:10]} 7. Nb5 {[%clk 0:02:34]}  Bxb5 {[%clk 0:02:07]} 8. Bxb5+ {[%clk 0:02:34]}  Nc6 {[%clk 0:02:08]} 9. Ne2 {[%clk 0:02:32]}  e5 {[%clk 0:01:22]} 10. Bxe5 {[%clk 0:02:23]}  Bxc5 {[%clk 0:01:22]} 11. Bxf6 {[%clk 0:02:24]}  gxf6 {[%clk 0:01:21]} 12. Ng3 {[%clk 0:02:25]}  O-O {[%clk 0:00:56]} 13. O-O {[%clk 0:02:24]}  Rfe8 {[%clk 0:00:48]} 14. Rd7 {[%clk 0:02:15]}  Re7 {[%clk 0:00:20]} 15. Rxb7 {[%clk 0:01:58]}  Nd4 {[%clk 0:00:07]} 16. Rxe7 {[%clk 0:01:58]}  Bxe7 {[%clk 0:00:08]} 17. Ba4 {[%clk 0:01:58]}  Rb8 {[%clk 0:00:03]} 18. c3 {[%clk 0:01:57]}  Ne6 {[%clk 0:00:02]} 19. b3 {[%clk 0:01:53]}  Nc5 {[%clk 0:00:03]} 20. Bc6 {[%clk 0:01:54]}  Rc8 {[%clk 0:00:02]} 21. Bd5 {[%clk 0:01:50]}  Bd6 {[%clk 0:00:03]} 22. Nf5 {[%clk 0:01:49]}  Rd8 {[%clk 0:00:03]} 23. Rd1 {[%clk 0:01:35]}  Ne6 {[%clk 0:00:02]} 24. g3 {[%clk 0:01:13]}  Be5 {[%clk 0:00:02]} 25. c4 {[%clk 0:01:10]}  Kf8 {[%clk 0:00:03]} 26. Ne3 {[%clk 0:01:09]}  Nd4 {[%clk 0:00:03]} 27. Bxe4 {[%clk 0:01:08]}  f5 {[%clk 0:00:04]} 28. Bxf5 {[%clk 0:01:07]}  h6 {[%clk 0:00:03]} 29. Kg2 {[%clk 0:01:06]}  Ke7 {[%clk 0:00:03]} 30. Be4 {[%clk 0:01:05]}  Kd6 {[%clk 0:00:02]} 31. Nf5+ {[%clk 0:01:03]}  Kc5 {[%clk 0:00:03]} 32. Nxh6 {[%clk 0:01:04]}  Rd7 {[%clk 0:00:02]} 33. h4 {[%clk 0:01:01]}  Bg7 {[%clk 0:00:03]} 34. Nf5 {[%clk 0:01:01]}  Bh8 {[%clk 0:00:03]} 35. h5 {[%clk 0:01:01]}  Kb4 {[%clk 0:00:04]} 36. Nxd4 {[%clk 0:01:01]}  Rxd4 {[%clk 0:00:05]} 37. Rxd4 {[%clk 0:01:01]}  Bxd4 {[%clk 0:00:06]} 38. Bd5 {[%clk 0:00:57]}  Ka3 {[%clk 0:00:06]} 39. Bxf7 {[%clk 0:00:56]}  a5 {[%clk 0:00:06]} 40. h6 {[%clk 0:00:56]}  Kxa2 {[%clk 0:00:07]} 41. h7 {[%clk 0:00:56]}  Kxb3 {[%clk 0:00:06]} 42. c5+ {[%clk 0:00:57]}  Kb4 {[%clk 0:00:06]} 43. c6 {[%clk 0:00:58]}  Be5 {[%clk 0:00:02]} 44. c7 {[%clk 0:00:59]}  Bxc7 {[%clk 0:00:03]} 45. h8=Q {[%clk 0:00:59]}  Be5 {[%clk 0:00:04]} 46. Qxe5 {[%clk 0:00:58]}  a4 {[%clk 0:00:05]} 47. Qd4+ {[%clk 0:00:59]}  Ka3 {[%clk 0:00:06]} 48. Qc3# {[%clk 0:00:59]} 1-0


[Site "https://www.chess.com"]

[Event "Titled Tuesday Blitz June 21 Early 2022"]
[White "Bryakin, Mikhail"]
[Black "Terry, Renato"]
[WhiteFideId "4165314"]
[BlackFideId "3803457"]
[WhiteElo "2417"]
[BlackElo "2577"]
[Result "0-1"]
[Round "03"]
[TimeControl "180+1"]
[Date "2022.06.21"]
[WhiteClock "0:00:03"]
[BlackClock "0:00:05"]

1. e4 {[%clk 0:03:00]}  e6 {[%clk 0:02:59]} 2. d4 {[%clk 0:03:00]}  d5 {[%clk 0:02:59]} 3. exd5 {[%clk 0:03:00]}  exd5 {[%clk 0:02:59]} 4. Bd3 {[%clk 0:03:01]}  Nc6 {[%clk 0:03:00]} 5. c3 {[%clk 0:03:00]}  Bd6 {[%clk 0:03:00]} 6. Ne2 {[%clk 0:03:00]}  Qh4 {[%clk 0:03:00]} 7. Ng3 {[%clk 0:02:52]}  Bxg3 {[%clk 0:02:59]} 8. fxg3 {[%clk 0:02:53]}  Qe7+ {[%clk 0:02:59]} 9. Qe2 {[%clk 0:02:52]}  Qxe2+ {[%clk 0:03:00]} 10. Kxe2 {[%clk 0:02:52]}  Nge7 {[%clk 0:02:59]} 11. Bf4 {[%clk 0:02:51]}  Kd8 {[%clk 0:02:57]} 12. Na3 {[%clk 0:02:45]}  Bf5 {[%clk 0:02:52]} 13. Nb5 {[%clk 0:02:43]}  Rc8 {[%clk 0:02:52]} 14. Rhe1 {[%clk 0:02:41]}  Kd7 {[%clk 0:02:48]} 15. Bxf5+ {[%clk 0:02:38]}  Nxf5 {[%clk 0:02:48]} 16. Kd3 {[%clk 0:02:39]}  a6 {[%clk 0:02:47]} 17. Na3 {[%clk 0:02:39]}  h5 {[%clk 0:02:41]} 18. Re2 {[%clk 0:02:21]}  Rce8 {[%clk 0:02:36]} 19. Rae1 {[%clk 0:02:18]}  Rxe2 {[%clk 0:02:36]} 20. Rxe2 {[%clk 0:02:19]}  f6 {[%clk 0:02:36]} 21. h4 {[%clk 0:01:53]}  Nce7 {[%clk 0:02:33]} 22. Nc2 {[%clk 0:01:35]}  Ng6 {[%clk 0:02:32]} 23. Ne3 {[%clk 0:01:35]}  Nxe3 {[%clk 0:02:32]} 24. Bxe3 {[%clk 0:01:33]}  Re8 {[%clk 0:02:26]} 25. Rf2 {[%clk 0:01:33]}  c6 {[%clk 0:02:23]} 26. Rf5 {[%clk 0:01:33]}  Rh8 {[%clk 0:02:23]} 27. b3 {[%clk 0:01:32]}  Ke6 {[%clk 0:02:23]} 28. Rf1 {[%clk 0:01:32]}  Ne7 {[%clk 0:02:23]} 29. c4 {[%clk 0:01:31]}  Nf5 {[%clk 0:02:22]} 30. Bf4 {[%clk 0:01:29]}  Rd8 {[%clk 0:02:20]} 31. Re1+ {[%clk 0:01:28]}  Kf7 {[%clk 0:02:20]} 32. c5 {[%clk 0:01:24]}  Re8 {[%clk 0:02:14]} 33. Rxe8 {[%clk 0:01:22]}  Kxe8 {[%clk 0:02:15]} 34. b4 {[%clk 0:01:23]}  Kf7 {[%clk 0:02:12]} 35. a4 {[%clk 0:01:23]}  Ke6 {[%clk 0:02:11]} 36. Bb8 {[%clk 0:01:17]}  Nh6 {[%clk 0:02:04]} 37. Ke3 {[%clk 0:01:15]}  Nf5+ {[%clk 0:01:48]} 38. Kd3 {[%clk 0:01:14]}  g5 {[%clk 0:01:34]} 39. hxg5 {[%clk 0:01:12]}  fxg5 {[%clk 0:01:35]} 40. g4 {[%clk 0:01:11]}  hxg4 {[%clk 0:01:23]} 41. g3 {[%clk 0:01:06]}  Ne7 {[%clk 0:00:43]} 42. Ke3 {[%clk 0:01:05]}  Kf5 {[%clk 0:00:43]} 43. Bd6 {[%clk 0:01:02]}  Ng6 {[%clk 0:00:43]} 44. Bb8 {[%clk 0:00:58]}  Nf8 {[%clk 0:00:34]} 45. Bd6 {[%clk 0:00:54]}  Ne6 {[%clk 0:00:34]} 46. Be5 {[%clk 0:00:55]}  Kg6 {[%clk 0:00:35]} 47. Kd3 {[%clk 0:00:54]}  Kf7 {[%clk 0:00:33]} 48. a5 {[%clk 0:00:52]}  Kg6 {[%clk 0:00:31]} 49. Ke3 {[%clk 0:00:52]}  Kf5 {[%clk 0:00:32]} 50. Bd6 {[%clk 0:00:52]}  Nd8 {[%clk 0:00:26]} 51. Be5 {[%clk 0:00:48]}  Nf7 {[%clk 0:00:26]} 52. Bc7 {[%clk 0:00:48]}  Ke6 {[%clk 0:00:26]} 53. Bb8 {[%clk 0:00:47]}  Nh6 {[%clk 0:00:26]} 54. Kd3 {[%clk 0:00:46]}  Nf5 {[%clk 0:00:25]} 55. Bc7 {[%clk 0:00:44]}  Kf7 {[%clk 0:00:15]} 56. Bb8 {[%clk 0:00:44]}  Ne7 {[%clk 0:00:12]} 57. Bd6 {[%clk 0:00:44]}  Ng6 {[%clk 0:00:12]} 58. Ke3 {[%clk 0:00:44]}  Ke6 {[%clk 0:00:11]} 59. Bb8 {[%clk 0:00:44]}  Nh8 {[%clk 0:00:12]} 60. Be5 {[%clk 0:00:43]}  Nf7 {[%clk 0:00:13]} 61. Bc7 {[%clk 0:00:43]}  Kd7 {[%clk 0:00:09]} 62. Bb8 {[%clk 0:00:43]}  Kc8 {[%clk 0:00:09]} 63. Bd6 {[%clk 0:00:14]}  Nxd6 {[%clk 0:00:10]} 64. cxd6 {[%clk 0:00:14]}  Kd7 {[%clk 0:00:10]} 65. Kd3 {[%clk 0:00:15]}  Kxd6 {[%clk 0:00:11]} 66. Kc3 {[%clk 0:00:15]}  Kd7 {[%clk 0:00:10]} 67. Kb3 {[%clk 0:00:15]}  Kc7 {[%clk 0:00:07]} 68. Ka3 {[%clk 0:00:13]}  Kb8 {[%clk 0:00:08]} 69. Kb3 {[%clk 0:00:13]}  Ka7 {[%clk 0:00:09]} 70. Ka3 {[%clk 0:00:13]}  Ka8 {[%clk 0:00:08]} 71. Kb3 {[%clk 0:00:13]}  Kb8 {[%clk 0:00:08]} 72. Kc3 {[%clk 0:00:12]}  Kc7 {[%clk 0:00:08]} 73. Kb3 {[%clk 0:00:12]}  b6 {[%clk 0:00:08]} 74. axb6+ {[%clk 0:00:11]}  Kxb6 {[%clk 0:00:09]} 75. Ka4 {[%clk 0:00:12]}  Kb7 {[%clk 0:00:08]} 76. Kb3 {[%clk 0:00:11]}  Ka7 {[%clk 0:00:08]} 77. Ka3 {[%clk 0:00:11]}  Kb6 {[%clk 0:00:07]} 78. Ka4 {[%clk 0:00:11]}  Kb7 {[%clk 0:00:05]} 79. Kb3 {[%clk 0:00:10]}  Kc7 {[%clk 0:00:05]} 80. Ka4 {[%clk 0:00:04]}  Kb6 {[%clk 0:00:05]} 81. Kb3 {[%clk 0:00:03]}  Kb5 {[%clk 0:00:05]} 0-1


[Site "https://www.chess.com"]